Cogmind - Beta 10.2 @@@ ROGUE MODE // 2021.11.30 @ 22:12:41 Player: Chase Result: Destroyed by Y-45 Defender with Heavy Assault Rifle Performance ------------- Evolutions (1) 500 Regions Visited (3) 600 Robots Destroyed (45) 225 Value Destroyed (674) 674 Prototype IDs (0) 0 Alien Tech Used (0) 0 Bonus (133) 133 TOTAL SCORE: 2132 Bonus ------- Follower Combat Kills 133 Cogmind --------- Core Integrity 0/400 Matter 269/300 Energy 37/265 System Corruption 0% Temperature Cool (9) Movement Core (200) Ox3 Location -9/Materials Parts ------- > --- POWER (1) -------- Improved Ion Engine > --- PROPULSION (3) --- (None) > --- UTILITY (3) ------ ECM Suite > --- WEAPON (2) ------- Heavy Assault Rifle > --- INVENTORY (4) ---- Light Cannon Grenade Launcher Grenade Launcher Datajack Peak State ------------ > --- POWER ------------ (None) > --- PROPULSION ------- Advanced Treads > --- UTILITY ---------- Small Storage Unit ECM Suite > --- WEAPON ----------- Katana Katana > --- INVENTORY -------- Light Cannon Light Cannon Grenade Launcher Grenade Launcher Datajack [Rating: 11] Favorites ----------- Power Ion Engine Engine Ion Engine Propulsion Aluminum Leg Treads Advanced Treads Leg Aluminum Leg Flight Unit Flight Unit Utility Small Storage Unit Device Sensor Array Storage Small Storage Unit Weapon Small Laser Energy Gun Small Laser Ballistic Gun Assault Rifle Ballistic Cannon Light Cannon Launcher Grenade Launcher Slashing Weapon Katana Special Melee Weapon Datajack Build | -11 -10 -10 -9 ------- Run | Scr Mat Min Mat Slots Evolved 2 | . . . 2 Power . | . . . . Propulsion 1 | . . . 1 Utility 1 | . . . 1 Weapon . | . . . . Parts Attached 34 | 6 11 8 9 Power 5 | 1 . 2 2 Engine 5 | 1 . 2 2 Core . | . . . . Reactor . | . . . . Propulsion 6 | 2 1 2 1 Treads 1 | . . . 1 Leg 3 | 2 1 . . Wheel . | . . . . Hover . | . . . . Flight 2 | . . 2 . Utility 5 | 1 2 1 1 Device 4 | . 2 1 1 Storage 1 | 1 . . . Processor . | . . . . Hackware . | . . . . Protection . | . . . . Artifact . | . . . . Weapon 18 | 2 8 3 5 Energy Gun 5 | 1 1 1 2 Energy Cannon . | . . . . Ballistic Gun 3 | 1 1 . 1 Ballistic Cannon 3 | . 2 1 . Launcher 3 | . 2 1 . Special Weapon . | . . . . Impact Weapon . | . . . . Slashing Weapon 2 | . . . 2 Piercing Weapon . | . . . . Special Melee Weapon 2 | . 2 . . Unidentified Prototypes . | . . . . Parts Lost 14 | . 1 2 11 Power 3 | . . 1 2 Propulsion 3 | . . . 3 Utility 2 | . . . 2 Weapon 6 | . 1 1 4 Highest Loss Streak 5 | . 1 1 5 Average Slot Usage (%) 85 | . 92 86 64 Engine 13 | . 14 13 9 Leg 15 | . 27 1 . Flight 10 | . . 26 15 Device 12 | . 8 14 19 Storage 13 | . 14 14 10 Energy Gun 9 | . 8 14 6 Ballistic Gun 5 | . 10 . . Ballistic Cannon 2 | . 4 1 . Launcher 1 | . 1 . . Special Melee Weapon 1 | . 1 . . Naked Turns . | . . . . Heaviest Build 16 | 13 16 14 16 Greatest Support 22 | 20 20 20 22 Greatest Overweight (x) 5 | 1 1 3 5 Average Overweight (x) . | . . . 1 Largest Inventory Capacity 6 | 6 6 6 6 Average Capacity 5 | 5 6 6 5 Most Carried 6 | . 6 6 6 Average Carried 4 | . 4 5 5 Final Capacity 6 | 6 6 6 4 Final Carried 6 | . 6 6 4 Class Distribution -------------------- 72% | Mutant 27% | Scavenger-Mutant Dominant Class ---------------- Mutant | -10/Materials Scavenger-Mutant | -10/Mines Scavenger-Mutant | -9/Materials Resources | -11 -10 -10 -9 ----------- Run | Scr Mat Min Mat Matter Collected 964 | 109 698 132 25 Remotely . | . . . . Salvage Created 1179 | . 1002 122 55 Parts 84 | . 66 14 4 Haulers Intercepted 2 | . 2 . . Recyclers Shooed 4 | . 3 . 1 Parts Field Recycled . | . . . . Retrieved Matter . | . . . . Parts Self-Destructed . | . . . . Prevented . | . . . . Kills | -11 -10 -10 -9 ------- Run | Scr Mat Min Mat Combat Hostiles Destroyed 19 | . 12 6 1 Melee 1 | . . . 1 Guns 4 | . 2 2 . Cannons 3 | . 1 2 . AOE 11 | . 9 2 . Classes Destroyed 11 | . 10 . 1 Worker 5 | . 4 1 . Builder 7 | . 6 1 . Tunneler 4 | . 3 1 . Hauler 2 | . 2 . . Recycler 5 | . 5 . . Mechanic 1 | . 1 . . Operator 1 | . 1 . . Watcher 1 | . 1 . . Swarmer 9 | . 3 6 . Grunt 9 | . 9 . . Sentry 1 | . . . 1 Best Kill Streak 10 | . 10 6 1 Combat Bots Only 5 | . 5 3 1 Max Kills in Single Turn 5 | . 5 2 1 Gunslinging . | . . . . Exploded 2 | . 2 2 . Melee 1 | . . . 1 Uniques/NPCs Destroyed . | . . . . Combat | -11 -10 -10 -9 -------- Run | Scr Mat Min Mat Damage Taken 1756 | . 353 345 1058 Core 582 | . 71 111 400 Absorbed by Shields . | . . . . Core Remaining (%) 63 | 100 . 27 . Volleys Fired 110 | . 90 11 9 Largest 2 | . 2 2 1 Hottest 75 | . 75 75 56 Shots Fired 184 | . 155 20 9 Gun 142 | . 124 9 9 Cannon 24 | . 17 7 . Launcher 18 | . 14 4 . Special . | . . . . Kinetic 104 | . 95 7 2 Thermal 62 | . 46 9 7 Explosive 18 | . 14 4 . Electromagnetic . | . . . . Robot Hit Streak 7 | . 7 2 4 Robot Miss Streak 3 | . 3 2 1 Penetration Max . | . . . . Secondary Targets . | . . . . Shots Hit Robots 108 | . 90 7 11 Core Hits 62 | . 52 9 1 Critical Hits 1 | . 1 . . Critical Kills . | . . . . Critical Parts Destroyed 1 | . 1 . . Melee Attacks 13 | . 7 . 6 Impact . | . . . . Slashing 6 | . . . 6 Piercing . | . . . . Sneak Attacks 6 | . 6 . . Combat Hostiles . | . . . . Follow-up Attacks 1 | . . . 1 Damage Inflicted 2410 | . 1856 313 241 Guns 1032 | . 875 66 91 Cannons 191 | . 156 35 . Explosions 1027 | . 825 202 . Melee 143 | . . . 143 Ramming 17 | . . 10 7 Kinetic 727 | . 674 35 18 Thermal 597 | . 458 66 73 Explosive 924 | . 722 202 . Electromagnetic 2 | . 2 . . Impact . | . . . . Slashing 143 | . . . 143 Piercing . | . . . . Highest Corruption 2 | . . 2 . Average Corruption 2 | . . 2 . Corruption Purged . | . . . . Effects 2 | . . 2 . Message Errors 1 | . . 1 . Energy Discharges 1 | . . 1 . Overload Shots . | . . . . Overflow Damage 136 | . 136 . . Projectiles 2 | . 2 . . Explosions 134 | . 134 . . Melee . | . . . . Knockbacks 2 | . 2 . . Impact . | . . . . Kinetic 2 | . 2 . . Secondary . | . . . . Self-Inflicted Damage 111 | . 104 4 3 Shots 2 | . 2 . . Rammed 6 | . . 5 1 Targets Rammed 6 | . . 5 1 Kicked . | . . . . Crushed . | . . . . Highest Temperature 81 | . 81 60 42 Average Temperature 26 | . 28 29 17 Received Heat Transfer 576 | . 111 96 369 Siege Activations . | . . . . Robots Corrupted . | . . . . Combat Hostiles . | . . . . Parts Fried . | . . . . Impact Corruptions . | . . . . Robots Melted . | . . . . Combat Hostiles . | . . . . Parts Melted 3 | . 2 1 . Heat Transferred 1271 | . 936 150 185 Parts Sabotaged . | . . . . Parts Stolen . | . . . . Parts Stripped . | . . . . Power Chain Reactions . | . . . . Missiles Intercepted . | . . . . Alert | -11 -10 -10 -9 ------- Run | Scr Mat Min Mat Peak Influence 397 | . 397 225 129 Initial 80 | . . 80 27 Average 166 | . 223 136 68 Maximum Alert Level 1 | . 1 1 . Low Security (%) 61 | 100 41 70 100 Level 1 38 | . 58 29 . Level 2 . | . . . . Level 3 . | . . . . Level 4 . | . . . . Level 5 . | . . . . High Security . | . . . . Max Security . | . . . . Squads Dispatched 7 | . 3 1 3 Investigation 1 | . 1 . . Extermination . | . . . . Reinforcement 5 | . 2 . 3 Assault 1 | . . 1 . Garrison . | . . . . Intercept . | . . . . Construction Impeded . | . . . . Haulers Reinforced . | . . . . Stealth | -11 -10 -10 -9 --------- Run | Scr Mat Min Mat Distress Signals 2 | . 2 . . Communications Jammed . | . . . . Distress Signals . | . . . . Times Spotted 42 | . 24 11 7 Peak Tracking Total 5 | . 3 4 5 Tactical Retreats 6 | . 1 1 4 Traps | -11 -10 -10 -9 ------- Run | Scr Mat Min Mat Traps Triggered 1 | . 1 . . Indirectly . | . . . . Trap Hack Attempts . | . . . . Triggered . | . . . . Disarmed . | . . . . Reprogrammed . | . . . . Reused . | . . . . Traps Extracted . | . . . . Installed . | . . . . Triggered . | . . . . Machines | -11 -10 -10 -9 ---------- Run | Scr Mat Min Mat Machines Disabled 6 | . 6 . . Max in Single Turn 3 | . 3 . . Machines Sabotaged . | . . . . Garrisons Compromised . | . . . . Overloaded Fab Kills . | . . . . Fab Network Shutdowns . | . . . . Hacking | -11 -10 -10 -9 --------- Run | Scr Mat Min Mat Machines Accessed 1 | . 1 . . Terminals . | . . . . Fabricators . | . . . . Repair Stations . | . . . . Recycling Units 1 | . 1 . . Scanalyzers . | . . . . Garrison Access . | . . . . Total Hacks 1 | . 1 . . Successful 1 | . 1 . . Failed . | . . . . Catastrophic . | . . . . Database Lockouts . | . . . . Manual . | . . . . Terminals . | . . . . Fabricators . | . . . . Repair Stations . | . . . . Recycling Units 1 | . 1 . . Scanalyzers . | . . . . Garrison Access . | . . . . Terminal Hacks . | . . . . Fabricator Hacks . | . . . . Repair Station Hacks . | . . . . Recycling Unit Hacks 1 | . 1 . . Process 1 | . 1 . . Scanalyzer . | . . . . Garrison Access Hacks . | . . . . Unauthorized Hacks . | . . . . Terminals . | . . . . Fabricators . | . . . . Repair Stations . | . . . . Recycling Units . | . . . . Scanalyzers . | . . . . Garrison Access . | . . . . Data Cores Recovered . | . . . . Used . | . . . . Hacking Detections . | . . . . Full Trace Events . | . . . . Feedback Events . | . . . . Feedback Blocked . | . . . . Robot Schematics Acquired . | . . . . Robots Built . | . . . . Matter . | . . . . Time . | . . . . Total Robot Build Rating . | . . . . Part Schematics Acquired . | . . . . Parts Built . | . . . . Matter . | . . . . Time . | . . . . Total Part Build Rating . | . . . . Parts Repaired . | . . . . Time . | . . . . Parts Recycled . | . . . . Recycled Matter 75 | . 75 . . Retrieved Matter . | . . . . Retrieved Components . | . . . . Parts Scanalyzed . | . . . . Part Schematics Acquired . | . . . . Parts Damaged . | . . . . Bothacking | -11 -10 -10 -9 ------------ Run | Scr Mat Min Mat Used RIF Installer . | . . . . Robots Hacked 3 | . 3 . . Non-combat 2 | . 2 . . Combat 1 | . 1 . . Robot Hacks Applied 5 | . 5 . . parse_system 2 | . 2 . . no_distress 2 | . 2 . . find_recycling 1 | . 1 . . Relay Couplers Released . | . . . . Robots Rewired . | . . . . Allies Hacked . | . . . . Hacks Repelled . | . . . . Allies | -11 -10 -10 -9 -------- Run | Scr Mat Min Mat Total Allies 3 | . . 3 . Largest Group 2 | . . 2 2 Highest-Rated Group 39 | . . 39 39 Highest-Rated Ally 31 | . . 31 31 Total Orders . | . . . . Ally Attacks 23 | . . 15 8 Total Damage 358 | . . 191 167 Kills 6 | . . 3 3 Allies Corrupted . | . . . . Allies Melted . | . . . . Intel | -11 -10 -10 -9 ------- Run | Scr Mat Min Mat Robot Analysis Total . | . . . . Derelict Logs Recovered 1 | . . 1 . Drone Launches . | . . . . Drone Recoveries . | . . . . Exploration | -11 -10 -10 -9 ------------- Run | Scr Mat Min Mat Turns Passed 2373 | 54 1237 636 446 Spaces Moved 1634 | 43 780 504 307 Core 41 | 10 . . 31 Treads 6 | . . . 6 Legs 826 | 33 780 13 . Wheels . | . . . . Hover . | . . . . Flight 761 | . . 491 270 Fastest Speed 37 | 50 120 37 117 Average Speed 120 | 107 120 116 130 Slowest Speed 300 | 120 150 280 300 Overloaded Moves . | . . . . Propulsion Burnouts . | . . . . Robots Hopped . | . . . . Cave-ins Triggered . | . . . . Exploration Rate (%) 43 | 2 81 75 14 Regions Visited 3 Branch Regions 1 Pre-discovered Areas . | . . . . Known Exits Taken . | . . . . Unknown Exits Taken 3 | 1 1 1 . Scrap Searched 2 | . . 2 . Spaces Dug . | . . . . Terrain Destroyed 76 | . 54 22 . Melee . | . . . . Projectile . | . . . . AOE 76 | . 54 22 . Terrain Rammed . | . . . . Walls Destroyed . | . . . . Machines Disabled . | . . . . Actions | -11 -10 -10 -9 --------- Run | Scr Mat Min Mat Total 1830 | 48 917 532 333 Wait 16 | . 16 . . Move 1631 | 42 779 503 307 Hop . | . . . . Pick Up 9 | . 8 . 1 Fast Attach 19 | 6 3 4 6 Attach 7 | . 2 2 3 Detach 6 | . 3 2 1 Swap 8 | . 6 2 . Drop 6 | . 3 3 . Fire 110 | . 90 11 9 Melee 12 | . 7 . 5 Ram 6 | . . 5 1 Kick . | . . . . Crush . | . . . . Escape Stasis . | . . . . Rewire . | . . . . Trap . | . . . . Miscellaneous . | . . . . Route ------- -11/Scrapyard -10/Materials (discovered 5 exits: [*Mat x3] / [*Min x2]) -10/Mines -9/Materials (discovered 4 exits: Mat / Min / *Sto x2) History --------- Turn | Location | Event 10 | -11/Scrapyard | Discovered new exit (range 15) 55 | -11/Scrapyard | Entered Materials 135 | -10/Materials | Discovered new exit (range 8) 222 | -10/Materials | Discovered new exit (range 15) 342 | -10/Materials | Build established: Mutant 424 | -10/Materials | Discovered new exit (range 6) 533 | -10/Materials | Discovered new exit (range 13) 623 | -10/Materials | Discovered new exit (range 14) 1292 | -10/Materials | Entered Mines 1596 | -10/Mines | Met a Derelict testing a Signal Generator 1631 | -10/Mines | Build established: Scavenger-Mutant 1727 | -10/Mines | Core integrity fell below 50% 1813 | -10/Mines | Discovered new exit (range 12) 1868 | -10/Mines | Learned 8 Materials zone layouts 1928 | -10/Mines | Entered Materials 1928 | -9/Materials | Accompanied by 2 allies 1928 | -9/Materials | Evolved 2 slots: Propulsion x1, Utility x1 1929 | -9/Materials | Identified exit to Mines 1929 | -9/Materials | Identified exit to Materials 1929 | -9/Materials | Identified exit to Storage 1933 | -9/Materials | Led the pair of lost Derelicts to an unsafe place 1970 | -9/Materials | Discovered exit to Storage (range 12) 2266 | -9/Materials | Lost 3 parts (1p1n1w) 2300 | -9/Materials | Core integrity fell below 50% 2363 | -9/Materials | Core integrity fell below 20% 2374 | -9/Materials | Destroyed by Y-45 Defender with Heavy Assault Rifle Last Messages --------------- 02162_ Slammed into R-06 Scavenger. 02218_ Beam Rifle destroyed. 02221_ Flight Unit destroyed. 02235_ Lgt. Ion Engine destroyed. 02271_ Sensor Array destroyed. 02277_ Flight Unit destroyed. 02301_ K-01 Serf collects debris. 02328_ Acquired Katana. Only a single melee weapon may be active at a time, Katana automatically deactivated. (Secondary inactive melee weapons have a chance to conduct follow-up attacks, see the manual.) 02341_ Imp. Ion Engine destroyed. 02342_ Acquired Adv. Treads. 02358_ Katana follow-up attack on Y-45 Defender. 02359_ Adv. Treads destroyed. 02362_ Katana destroyed. 02363_ Y-45 Defender destroyed. 02365_ Sml. Storage Unit destroyed. 02367_ Acquired Imp. Ion Engine. 02368_ Katana destroyed. 02370_ Acquired Hvy. Assault Rifle. Map ----- +----------------------------------------------------+ | #??????# > ""# ########### ??????????? | | ?????????????????????????????????????????????????? | | ?????????????????????????????????????????????????? | | ?????????????????????????????????????????????????? | | ?????????????????????????????????????????????????? | | ?????????????????????????????????????????????????? | | ?????????????????????????????????????????????????? | | ?????????????????????????????????????????????????? | | ?????????????????????????????????????????????????? | | ????????????????????? ?????????????????????????? | | ???????????????????? #????????????????????????? | | ???????????????????? +????????????????????????? | | ????????????????????# #????????????????????????? | | ????????????????????# #????????????????????????? | | ????????????????????# #????????????????????????? | | ????????????????????# #????????????????????????? | | ????????????????????# #????????????????????????? | | ????????????????????+ #????????????????????????? | | ????????????????????# #????????????????????????? | | ????????????????????# #????????????????????????? | | ????????????????????# #????????????????????????? | | ????????????????????# #?????????????#??????????? | | ????????????#+####### #?????????? ###????????? | | ????????????? !######### ???????? | | ????????????????????# %Y%% % ???????? | | ????????????????????# ##%@] ### [ ???????? | | #############+#####?# ## #????????########### | | #???????# #?# ##// /==#??????????????????? | | #???????# #?# ##// /= #??????????????????? | | #???????# ### #########??????????????????? | | #???????# / #??????????????????????????? | | #???????# ### ########?????????#####?????? | | #???????# #?#%#! [ [ #????????? #????? | | #???????# #?# #!! #????????? #????? | | #???????# #?# # #????????? #????? | | #???????######/####?# # #????????? #????? | | #????????????# #????# # ####?????? #????? | | #??????????### ###??# # / #?????? #????? | | #??????????# #### ##/##### #?????? #????? | | ############ ######+######????? | | >% #### #????? | | ############ #??# #????? | | ???????????# #######+#+##?# #????? | | ???????????###+###???# #?# ##+#####+#######?? | | ???????????# ????# """ #?# ## #?? | | ???????????# """ #??# """ ### ## #?? | | ???????????# """ #??# """ + ## """ """ = #?? | | ???????????# """ #??# ###### """ """ [= #?? | | ???????????# #??# #????# """ """ [= #?? | | ???????????# #??########????# #?? | +----------------------------------------------------+ Best States ------------- Heat Dissipation 39 Energy Generation 12 Energy Capacity 265 Matter Stores 300 Matter Capacity 300 Sight Range 16 Robot Scan Range 10 Terrain Scan Density 10 ECM Strength 1 Evasion (%) 62 Recoil Reduction 1 Item Schematics ----------------- None Robot Schematics ------------------ None Fabricated ------------ Nothing Alien Tech Used ----------------- None Achievements -------------- None Challenges ------------ None Game ------ Seed SupersonicOmegaCloak Manual? 0 Play Time 00:32:02 Cumulative 4.4 hours Start 2021.11.30 @ 21:25:03 End 2021.11.30 @ 22:12:41 Sessions 1 Manual Loads 0 Difficulty Rogue Special Mode None Game No. 2 Rogue 2 Adventurer 0 Explorer 0 Win Type - Total 0 Types 0/0/0/0/0/0/0/0/0 Lore% 0 Gallery% 7 Achievement% 8 Wizard Run 0 Options --------- ASCII 0 Keyboard 0 Movement Arrows Keybinds 0 Fullscreen 1 Font 24/Terminus Map View 113x50 Tactical HUD 1 Map Filters NONE Filters NONE Steam 1 RUN: d965ffbc-0bd7-41f8-80b3-00947f3557bd